bitfinex/quotes_ETHUSD_20241212
["timestamp","ask_amount","ask_price","bid_price","bid_amount"]
[1734001799605,0.7841,3934.3,3933.3,0.5136]
[1734001799907,2.54189,3934.1,3933.3,0.5136]
[1734001800434,0.7841,3934.3,3933.3,0.5136]
[1734001800700,0.55,3934.2,3932.9,0.5136]
[1734001800912,2.54227,3933.5,3932.0,0.5136]
[1734001801065,2.54203,3933.9,3932.0,0.5136]
[1734001801066,2.54203,3933.9,3932.1,2.54311]
[1734001801425,2.54221,3933.6,3932.0,0.5136]
[1734001801707,2.54246,3933.2,3932.0,3.05681]
[1734001801904,2.54246,3933.2,3932.1,0.66330619]
[1734001802294,0.7883,3933.7,3932.1,0.66330619]
[1734001802498,2.5427,3932.9,3932.0,0.5136]
[1734001802740,0.7883,3933.4,3932.0,0.5136]
[1734001802741,2.5429,3932.6,3932.0,0.5136]
[1734001802921,2.5429,3932.6,3931.4,0.5136]
[1734001802922,2.54313,3932.2,3931.4,0.5136]
[1734001803288,2.54291,3932.5,3931.4,0.5136]
[1734001803564,0.7566,3932.6,3931.4,0.5136]
[1734001803843,2.54348,3931.7,3930.6,0.5136]
[1734001804020,2.54297,3932.4,3930.7,0.10574308]
[1734001804219,2.54297,3932.4,3930.6,0.5136]
[1734001804220,2.54351,3931.6,3930.6,0.5136]
[1734001804433,0.329943,3932.5,3930.6,0.5136]
[1734001804434,2.5437,3931.3,3930.6,0.5136]
[1734001804630,2.54376,3931.2,3930.6,0.5136]
[1734001804810,2.54376,3931.2,3930.6,0.4886]
[1734001805930,2.5436,3931.5,3930.6,0.4886]
[1734001806137,2.54363,3931.4,3930.6,0.83746]
[1734001806501,2.54363,3931.4,3930.6,0.4886]
[1734001806954,0.7597,3931.7,3930.6,0.4886]
[1734001807118,2.54381,3931.1,3930.6,0.4886]
[1734001807943,3.30317,3931.7,3930.6,0.4886]
[1734001808337,2.54369,3931.3,3930.6,0.4886]
[1734001808712,2.54377,3931.2,3930.6,0.4886]
[1734001808918,3.30317,3931.7,3930.6,0.4886]
[1734001808919,2.54385,3931.1,3930.6,0.4886]
[1734001809972,2.54386,3931.1,3930.1,0.4886]
[1734001810563,2.54388,3931.0,3930.2,0.603318]
[1734001810849,2.54394,3930.9,3930.1,0.4886]
[1734001811021,2.54388,3931.0,3930.1,0.4886]
[1734001811748,2.54395,3930.9,3930.1,0.4886]
[1734001812124,0.55,3931.6,3930.1,0.4886]
[1734001812325,2.5437,3931.3,3930.1,0.4886]
[1734001812530,2.5437,3931.3,3930.2,0.603309]
[1734001812726,3.09355,3931.6,3930.2,0.603309]
[1734001813054,3.09355,3931.6,3930.1,0.4886]
[1734001813055,2.54391,3931.0,3930.1,0.4886]
[1734001813350,2.5436,3931.5,3930.1,0.4886]
[1734001813351,2.54376,3931.2,3930.1,0.4886]
[1734001813525,2.54392,3931.0,3930.1,0.4886]
[1734001813728,2.54395,3930.9,3930.1,0.4886]
[1734001814081,2.54395,3930.9,3930.1,0.791923]
[1734001814259,3.36985,3930.9,3930.1,0.4886]
[1734001814440,2.54401,3930.8,3930.1,0.4886]
[1734001814642,2.54408,3930.7,3929.8,0.4886]
[1734001815020,0.8259,3930.9,3929.8,0.4886]
[1734001815354,2.54415,3930.6,3929.8,0.4886]
[1734001815757,0.8259,3930.9,3929.0,0.4886]
[1734001815968,0.55,3930.7,3929.1,0.33625964]
[1734001816146,0.55,3930.7,3929.0,3.03376]
[1734001816333,2.54369,3931.3,3929.0,3.03376]
[1734001816334,0.55,3930.8,3929.0,0.4886]
[1734001816533,2.54369,3931.3,3929.0,0.4886]
[1734001816534,0.76,3930.4,3929.0,0.4886]
[1734001816879,3.57625186,3929.5,3927.8,0.49998473]
[1734001817158,3.57625186,3929.5,3927.7,0.4886]
[1734001817159,2.54551,3928.5,3927.7,0.4886]
[1734001817457,2.54551,3928.5,3927.2,2.54631]
[1734001817458,2.54552,3928.5,3927.2,2.54631]
[1734001817687,2.54574,3928.2,3927.1,0.4886]
[1734001817928,2.54578,3928.1,3927.1,0.4886]
[1734001818127,2.54582,3928.0,3927.1,0.792112]
[1734001818352,0.7637,3928.8,3927.1,0.792112]
[1734001818488,2.54597,3927.8,3927.1,0.4886]
[1734001818842,3.57625186,3928.5,3926.4,2.54684]
[1734001818843,2.54608,3927.6,3926.5,2.54677]
[1734001818995,0.8101,3927.9,3926.4,0.4886]
[1734001819187,0.8101,3928.8,3926.5,0.48763451]
[1734001819419,0.55,3928.7,3926.9,2.54651]
[1734001819588,0.55,3928.7,3926.9,2.54653]
[1734001819929,2.54559,3928.4,3927.0,0.254653]
[1734001820092,2.54559,3928.4,3927.2,2.54631]
[1734001820287,0.8101,3928.8,3926.7,3.02546114]
[1734001820288,2.5454,3928.7,3927.4,2.54621]
[1734001820598,0.8107,3929.2,3927.5,0.02546113]
[1734001820921,0.55,3929.1,3927.6,0.35140611]
[1734001821141,0.8107,3929.2,3928.1,2.54575]
[1734001821142,3.35575,3929.2,3928.1,2.54575]
[1734001821447,3.35575,3929.2,3928.2,0.4886]
[1734001822035,0.8107,3929.2,3927.7,3.0]
[1734001822245,0.8107,3929.2,3927.7,0.4886]
[1734001822246,2.54538,3928.7,3927.7,0.4886]
[1734001822545,2.54538,3928.7,3927.7,1.12722161]
[1734001823227,2.54517,3929.1,3927.8,3.0]
[1734001823446,0.8107,3929.2,3927.9,2.54586]
[1734001823623,2.54511,3929.1,3927.9,2.54586]
[1734001823788,2.54511,3929.1,3927.9,3.21316816]
[1734001823988,2.54511,3929.1,3927.9,0.66730816]
[1734001824189,2.54511,3929.1,3927.9,3.0]
[1734001824443,0.8107,3929.2,3927.7,1.12722161]
[1734001824756,0.55,3928.9,3927.3,0.4886]
[1734001824966,0.55,3928.9,3926.4,8.79]
[1734001824967,0.8037,3928.1,3926.7,0.4886]
[1734001825093,2.54596,3927.8,3926.7,0.4886]
[1734001825289,0.8037,3928.1,3926.7,0.4886]
[1734001825530,0.55,3928.4,3926.8,0.02546137]
[1734001825742,0.8085,3928.6,3926.8,0.02546137]
[1734001825943,0.55,3929.3,3927.7,0.4886]
[1734001826094,3.09504,3929.3,3927.7,0.4886]
[1734001826293,2.54505,3929.2,3927.7,0.51405774]
[1734001826546,2.54505,3929.2,3927.9,3.0]
[1734001826710,0.389265,3929.1,3928.0,2.54582]
[1734001827250,0.55,3929.3,3927.7,3.03457]
[1734001827448,0.7976,3929.4,3927.9,2.54588]
[1734001827593,2.54498,3929.3,3927.7,0.4886]
[1734001827798,2.54498,3929.3,3928.2,2.54567]
[1734001827999,2.54507,3929.2,3927.9,2.54583]
[1734001828200,2.54512,3929.1,3928.0,0.603443]
[1734001828396,2.54518,3929.0,3927.7,0.4886]
[1734001828639,2.54505,3929.2,3927.9,2.54588]
[1734001828801,2.54505,3929.2,3928.0,2.54582]
[1734001829398,2.54505,3929.2,3927.7,0.4886]
[1734001829399,0.7976,3929.4,3927.8,3.0]
[1734001829599,0.7511,3928.6,3927.7,0.4886]
[1734001829866,2.54565,3928.3,3927.3,0.4886]
[1734001830153,2.875325,3928.3,3927.3,0.4886]
[1734001830708,0.55,3928.2,3926.9,0.4886]
[1734001830957,0.55,3928.2,3926.9,3.03513]
[1734001831100,2.54582,3928.0,3926.9,0.4886]
[1734001831307,0.55,3928.2,3926.9,0.4886]
[1734001831601,0.3425305,3928.1,3926.9,0.4886]
[1734001831805,2.54557,3928.4,3927.1,2.54639]
[1734001832036,0.55,3928.3,3927.1,2.54639]
[1734001832254,0.55,3928.5,3927.1,2.54639]
[1734001832554,2.54586,3928.0,3926.9,0.4886]
[1734001832759,2.54577,3928.1,3926.9,3.4886]
[1734001832968,2.54577,3928.1,3927.0,3.0]
[1734001833120,2.54577,3928.1,3927.0,2.54643]
[1734001833766,3.09569,3928.2,3927.1,2.54634]
[1734001834075,3.29658,3928.6,3926.9,0.83746]
[1734001834289,0.7511,3928.6,3927.0,0.74137119]
[1734001834589,0.7511,3928.6,3926.9,0.83746]
[1734001834590,2.54586,3928.0,3926.9,0.4886]
[1734001834717,2.54566,3928.3,3927.1,2.5464]
[1734001835016,2.54584,3928.0,3927.0,3.0]
[1734001835216,2.5455,3928.5,3927.0,3.0]
[1734001835429,3.42528,3928.4,3927.2,2.54633]
[1734001836214,2.54565,3928.3,3927.2,2.54633]
[1734001836421,0.87966,3928.4,3926.9,0.4886]
[1734001836715,2.54594,3927.9,3926.9,0.4886]
[1734001836916,0.55,3928.5,3926.9,0.4886]
[1734001837149,0.7857,3927.8,3926.9,0.4886]
[1734001837372,2.54611,3927.6,3926.9,0.4886]
[1734001837685,0.7857,3927.8,3925.7,4.41158986]
[1734001837686,2.54623,3927.4,3926.4,3.4886]
[1734001837823,0.7857,3927.8,3926.4,0.4886]
[1734001838175,3.33166,3927.8,3926.7,3.0]
[1734001838828,3.33166,3927.8,3926.4,0.4886]
[1734001838829,0.7857,3927.8,3926.4,0.4886]
[1734001839034,2.54622,3927.4,3926.4,0.4886]
[1734001839229,0.55,3927.7,3926.4,0.4886]
[1734001839230,2.5463,3927.3,3926.4,0.4886]
[1734001839469,2.5463,3927.3,3925.7,3.57625186]
[1734001839470,0.309622,3927.4,3926.0,0.4886]
[1734001839624,0.55,3927.7,3926.0,0.4886]
[1734001839979,0.55,3927.5,3926.0,0.4886]
[1734001840256,0.55,3927.7,3926.2,2.54699]
[1734001840257,2.54628,3927.3,3926.2,2.54699]
[1734001840570,2.54642,3927.1,3926.0,3.03572]
[1734001840858,2.54656,3926.9,3926.1,3.0]
[1734001841030,2.54661,3926.8,3926.0,0.4886]
[1734001841385,0.826,3926.9,3926.0,0.4886]
[1734001841656,2.54675,3926.6,3925.5,2.54743]
[1734001841859,2.5468,3926.5,3925.4,0.4886]
[1734001842020,0.25468,3926.5,3925.4,0.4886]
[1734001842357,2.54666,3926.7,3925.6,2.54737]
[1734001842556,0.826,3926.9,3925.4,0.4886]
[1734001842557,2.54686,3926.4,3925.4,0.4886]
[1734001843060,2.54688,3926.4,3925.4,0.4886]
[1734001843277,0.55,3926.8,3925.5,2.54744]
[1734001843419,0.826,3926.9,3925.4,0.4886]
[1734001843619,0.826,3926.9,3925.6,3.0]
[1734001843857,0.826,3926.9,3925.9,3.0]
[1734001844159,2.54627,3927.3,3925.9,3.0]
[1734001844461,2.54664,3926.8,3925.7,3.0]
[1734001844669,2.54664,3926.8,3925.8,0.334886]
[1734001844960,3.09654,3926.9,3925.8,3.334886]
[1734001845161,2.5466,3926.8,3925.8,3.334886]
[1734001845321,2.54683,3926.5,3925.8,0.334886]
[1734001845520,2.54683,3926.5,3925.4,0.4886]
[1734001845768,2.54668,3926.7,3925.6,3.0]
[1734001846224,2.54668,3926.7,3925.7,3.0]
[1734001846851,2.54653,3926.9,3925.4,0.4886]
[1734001847160,2.54653,3926.9,3925.5,3.0]
[1734001847457,0.55,3926.9,3925.6,0.60361]
[1734001847644,2.54682,3926.5,3925.5,3.0]
[1734001847907,2.54696,3926.3,3925.4,0.4886]
[1734001848151,2.54701,3926.2,3925.4,0.4886]
[1734001848332,0.7768,3926.3,3925.4,0.4886]
[1734001848534,0.7768,3926.3,3925.5,0.30362]
[1734001848735,0.7768,3926.3,3925.4,0.47401571]
[1734001849153,2.54718,3925.9,3925.1,0.50782482]
[1734001849540,2.54712,3926.0,3925.1,0.50782482]
[1734001849859,0.7768,3926.3,3925.1,0.50782482]
[1734001850162,0.55,3926.5,3925.4,2.5475]
[1734001850340,3.09678,3926.6,3925.4,2.80225]
[1734001850658,2.54685,3926.5,3925.4,0.25475]
[1734001850865,2.54698,3926.3,3925.1,5.54769]
[1734001851029,2.54698,3926.3,3925.2,2.54761]
[1734001851739,2.54698,3926.3,3925.3,0.7571]
[1734001851939,2.547,3926.2,3925.0,3.0581822]
[1734001852170,2.54711,3926.1,3925.1,3.0]
[1734001852470,2.54719,3925.9,3925.0,0.5104322]
[1734001853340,2.54719,3925.9,3925.0,3.5104322]
[1734001853669,0.7504,3926.7,3925.2,2.54763]
[1734001853968,2.54696,3926.3,3925.2,2.54763]
[1734001854269,2.54696,3926.3,3925.2,3.22914622]
[1734001854851,0.55,3926.6,3925.2,3.22914622]
[1734001855033,0.55,3926.6,3925.2,0.68151622]
[1734001855237,0.55,3926.4,3925.2,0.68151622]
[1734001855442,0.55,3926.2,3925.2,0.68151622]
[1734001855648,0.55,3926.1,3925.2,0.68151622]
[1734001855997,0.55,3926.0,3925.0,0.5104322]
[1734001856276,0.55,3925.9,3925.0,3.5104322]
[1734001856450,3.09719,3925.9,3925.0,3.5104322]
[1734001856950,3.09719,3925.9,3925.0,0.5104322]
[1734001857143,0.55,3925.9,3925.0,0.5104322]
[1734001857338,2.54733,3925.7,3925.0,0.5104322]
[1734001857534,2.54704,3926.2,3925.0,0.5104322]
[1734001857535,3.09738,3925.6,3925.0,0.5104322]
[1734001858479,3.09738,3925.6,3924.9,0.7571]
[1734001858673,0.55,3925.4,3924.9,0.7571]
[1734001859076,0.55,3925.4,3924.6,3.0]
[1734001859290,0.55,3925.7,3924.5,0.8033]
[1734001859771,0.55,3925.4,3924.5,0.8033]
[1734001859987,0.55,3925.4,3924.7,3.0]
[1734001860148,0.55,3925.5,3924.7,3.0]
[1734001860366,0.55,3925.5,3924.6,2.54802]
[1734001860539,0.55,3925.5,3924.5,0.8033]
[1734001860540,2.54763,3925.3,3924.9,0.51755046]
[1734001860902,0.55,3925.5,3924.9,0.51755046]
[1734001860903,3.09777,3925.0,3924.9,0.51755046]
[1734001861109,3.09777,3925.0,3923.8,2.54854]
[1734001861110,8.9,3923.9,3922.4,3.68505257]
[1734001861258,0.7843,3924.9,3922.0,5.16054945]
[1734001861259,3.09958,3922.2,3922.0,0.80758367]
[1734001861586,2.5501,3921.4,3920.0,0.7821]
[1734001861766,2.5501,3921.4,3919.6,5.19531163]
[1734001861767,3.10049,3920.8,3919.6,5.19531163]
[1734001862082,2.55082,3920.3,3919.5,0.7821]
[1734001862245,2.55082,3920.3,3918.2,8.79]
[1734001862438,0.78727729,3920.2,3918.7,0.7821]
[1734001862642,2.11643806,3920.2,3918.7,3.33394]
[1734001862842,2.76184513,3920.2,3918.7,0.70570981]
[1734001863088,3.10102,3920.0,3918.7,0.70570981]
[1734001863255,3.10102,3920.0,3917.7,2.55251]
[1734001863256,0.55,3919.3,3917.7,2.55251]
[1734001863455,1.42172295,3919.2,3917.1,3.6000202]
[1734001863659,1.42172295,3919.2,3916.4,0.50654959]
[1734001863660,2.55185,3918.8,3916.4,0.50654959]
[1734001863968,0.61692096,3919.1,3916.4,0.50654959]
[1734001863969,0.61441903,3918.7,3917.0,2.55291]
[1734001864155,0.55,3918.4,3917.1,0.255291]
[1734001864363,0.23727729,3918.3,3917.1,0.255291]
[1734001864580,0.23727729,3918.2,3917.1,0.255291]
[1734001864883,0.23727729,3918.1,3916.4,2.55335]
[1734001865043,0.37714174,3918.3,3916.2,0.1652248]
[1734001865044,0.55,3917.9,3916.2,0.1652248]
[1734001865247,0.55,3917.7,3916.2,0.1652248]
[1734001865560,0.23502633,3917.6,3916.2,0.1652248]
[1734001865769,0.15951836,3917.5,3916.6,3.3162]
[1734001865974,0.60919588,3917.4,3916.7,2.55314]
[1734001866186,0.60919588,3917.3,3916.6,0.763]
[1734001866497,0.60919588,3917.2,3916.6,3.3162]
[1734001866708,0.23430611,3917.1,3917.0,2.55294]
[1734001866904,0.12906452,3918.4,3917.0,2.55294]
[1734001866905,0.39051018,3918.2,3917.3,2.55275]
[1734001867199,0.6076433,3918.1,3917.2,2.55282]
[1734001867498,1.17581018,3918.6,3917.2,2.55282]
[1734001867499,0.6076433,3918.0,3917.2,2.55279]
[1734001867788,0.23370896,3917.9,3917.2,0.255279]
[1734001868095,0.12883486,3919.0,3917.5,0.7925]
[1734001868251,0.60598992,3918.9,3918.0,2.5523]
[1734001868585,0.60592148,3918.8,3918.1,0.02552316]
[1734001868772,0.60592148,3918.8,3917.8,3.0]
[1734001868773,0.15944531,3919.4,3918.5,2.55196]
[1734001868949,0.90242074,3919.8,3918.6,2.5519]
[1734001869149,1.24776181,3919.8,3917.8,3.0]
[1734001869354,0.90242074,3919.8,3918.6,2.55189]
[1734001869889,0.90242074,3919.8,3917.5,4.3925202]
[1734001869890,0.55,3919.7,3918.0,2.5523]
[1734001870054,0.55,3919.7,3918.1,3.0]
[1734001870253,0.55,3919.7,3918.3,2.55208]
[1734001870696,0.55,3919.7,3918.4,2.55204]
[1734001870998,0.55,3919.7,3918.2,2.55217]
[1734001870999,1.31034909,3919.7,3918.2,2.55217]
[1734001871158,1.31034909,3919.7,3917.5,0.7925]
[1734001871159,0.55,3919.4,3918.1,3.0]
[1734001871459,0.55,3919.4,3918.6,2.55191]
[1734001871660,0.7749,3919.8,3918.1,3.0]
[1734001871995,3.6000202,3920.5,3919.0,2.55165]
[1734001871996,0.8324,3920.5,3919.0,2.55165]
[1734001872295,0.8324,3920.5,3918.4,3.7902]
[1734001872296,0.8324,3920.5,3918.6,3.0]
[1734001872608,0.8324,3920.5,3918.6,0.02551578]
[1734001872760,0.8324,3920.5,3919.5,2.55131]
[1734001873092,0.8324,3920.5,3919.3,2.55146]
[1734001873258,1.18322775,3920.5,3919.5,2.55134]
[1734001873464,0.8324,3920.5,3919.0,0.0255131]
[1734001873684,0.8324,3920.5,3919.9,2.55107]
[1734001873889,0.8324,3920.5,3919.2,2.55149]
[1734001874062,0.8324,3920.5,3919.3,0.255149]
[1734001874266,2.55019,3921.3,3919.9,0.7827]
[1734001874498,0.49781926,3921.4,3920.0,2.55096]
[1734001874797,0.51177101,3922.8,3919.9,0.7827]
[1734001874798,0.8303,3921.8,3920.5,2.55067]
[1734001875099,0.8303,3921.8,3919.9,3.7827]
[1734001875100,0.8303,3921.8,3919.9,0.7827]
[1734001875303,2.55022,3921.3,3919.9,0.7827]
[1734001875597,0.50761343,3921.5,3920.3,2.55078]
[1734001875801,0.50761343,3921.5,3920.5,2.55068]
[1734001876002,0.96014925,3921.8,3920.5,2.55068]
[1734001876560,0.96014925,3921.8,3920.1,2.5509]
[1734001876561,0.55,3921.4,3920.1,2.5509]
[1734001876765,0.55,3921.2,3920.3,0.17461535]
[1734001876986,0.55,3921.2,3920.4,0.48204296]
[1734001877188,0.96014925,3921.8,3919.5,2.55134]
[1734001877189,0.55,3920.8,3920.5,0.48204296]
[1734001877481,1.3358,3920.7,3920.6,0.27244365]
[1734001877860,1.3358,3920.7,3920.3,0.20959931]
[1734001877861,0.55,3920.6,3919.8,2.55112]
[1734001878064,0.7858,3920.7,3919.3,3.36006]
[1734001878267,0.7823,3921.3,3919.8,2.55108]
[1734001878495,0.7823,3921.3,3919.9,0.27264393]
[1734001878723,0.7823,3921.3,3920.0,0.10485412]
[1734001878865,0.7823,3921.3,3920.1,0.10485412]
[1734001879066,0.7823,3921.3,3919.3,3.8086]
[1734001879268,0.7823,3921.3,3919.4,0.97107276]
[1734001879463,2.55042,3921.0,3919.7,3.0]
[1734001879674,0.7823,3921.3,3919.8,0.10489844]
[1734001879675,0.55,3921.2,3919.8,0.10489844]
[1734001879876,2.55057,3920.7,3919.4,2.55138]
[1734001880279,2.5507,3920.5,3919.3,0.8086]
[1734001880608,2.5507,3920.5,3919.3,3.8086]
[1734001880927,0.31007,3920.4,3919.3,3.36004]
[1734001881125,2.55058,3920.7,3919.5,2.55132]
[1734001881126,0.55,3920.7,3919.5,2.55132]
[1734001881400,0.55,3920.7,3919.6,2.55125]
[1734001881604,3.10052,3920.8,3919.3,3.36001]
[1734001881815,3.10052,3920.8,3919.6,2.55127]
[1734001882311,0.55,3920.6,3919.3,0.8086]
[1734001882529,0.860057,3920.6,3919.5,2.55132]
[1734001882818,0.860057,3920.6,3919.4,2.55139]
[1734001882980,0.860057,3920.6,3919.5,0.10528694]
[1734001883180,2.55024,3921.2,3918.9,0.7738]
[1734001883181,0.55,3920.4,3918.9,0.7738]
[1734001883427,0.55,3920.4,3919.3,3.0]
[1734001883586,0.55,3920.4,3919.4,0.10540492]
[1734001884444,2.55082,3920.3,3919.1,3.0]
[1734001884577,2.943639,3920.3,3919.5,0.16887589]
[1734001884777,2.943639,3920.3,3919.5,0.27441372]
[1734001885003,2.943639,3920.3,3919.6,0.10553783]
[1734001885201,2.943639,3920.3,3919.7,0.10553783]
[1734001885202,0.392819,3920.3,3919.7,0.10553783]
[1734001885415,0.392819,3920.3,3919.8,0.10553783]
[1734001885715,0.55,3920.4,3919.9,0.10553783]
[1734001886015,2.55082,3920.3,3919.3,3.0]
[1734001886229,2.55082,3920.3,3918.9,0.7738]
[1734001886230,2.55082,3920.3,3919.4,0.27495474]
[1734001886435,2.5509,3920.2,3919.5,0.27495474]
[1734001886589,0.55,3920.4,3919.6,0.27495474]
[1734001886915,0.13775,3920.3,3919.2,3.0]
[1734001887089,2.68861,3920.3,3919.2,3.0]
[1734001887279,0.55,3920.2,3917.9,3.32814]
[1734001887518,0.55,3919.9,3918.5,0.27591794]
[1734001887822,0.55,3919.9,3917.9,0.7758]
[1734001887823,0.55,3919.4,3917.9,3.32814]
[1734001887994,0.55,3919.1,3918.0,2.55231]
[1734001888522,0.55,3919.1,3917.9,0.7758]
[1734001888523,3.10162,3919.1,3917.9,0.7758]
[1734001888698,0.55,3918.9,3917.9,0.7758]
[1734001888899,2.55175,3918.9,3917.9,0.7758]
[1734001889512,0.940762,3919.1,3917.4,1.46150432]
[1734001889513,2.5518,3918.8,3917.4,1.46150432]
[1734001889712,2.5518,3918.8,3917.6,2.55257]
[1734001890116,0.940762,3919.1,3917.4,1.46150432]
[1734001890117,2.55167,3919.0,3917.4,1.46150432]
[1734001890421,0.55,3918.6,3917.5,2.55261]
[1734001890824,0.55,3918.8,3917.4,0.7614]
[1734001891028,0.55,3918.8,3917.8,2.55244]
[1734001891230,0.55,3919.1,3917.7,2.5525]
[1734001891427,0.806,3919.2,3918.3,2.55208]
[1734001891649,0.806,3919.2,3918.2,2.55213]
[1734001891792,0.806,3919.2,3917.8,3.0]
[1734001891793,0.806,3919.2,3918.4,2.55205]
[1734001892231,0.806,3919.2,3918.1,2.55221]
[1734001892537,0.806,3919.2,3918.3,2.55207]
[1734001892694,0.806,3919.2,3918.1,3.0]
[1734001893118,0.806,3919.2,3917.9,0.3]
[1734001893268,2.55162,3919.1,3917.5,3.0]
[1734001893437,2.55162,3919.1,3917.8,2.55243]
[1734001893626,0.55,3919.0,3917.9,2.55238]
[1734001893834,0.55,3919.0,3918.0,3.0]
[1734001894461,2.55186,3918.8,3917.7,2.5525]
[1734001894757,0.806,3919.2,3918.4,2.55205]
[1734001894969,0.8079,3919.7,3918.5,0.7701]
[1734001895130,0.8079,3919.7,3918.8,2.55178]
[1734001895476,0.8079,3919.7,3918.5,0.7701]
[1734001895682,0.8079,3919.7,3918.6,0.02551634]
[1734001895842,0.8079,3919.7,3919.5,2.55134]
[1734001896028,2.55084,3920.3,3919.2,2.55147]
[1734001896360,0.7837,3920.5,3918.7,0.4736963]
[1734001896538,2.55078,3920.4,3919.3,2.55145]
[1734001896737,0.333448,3920.3,3918.7,0.4736963]
[1734001896941,0.55,3920.4,3918.7,0.4736963]
[1734001897275,0.55,3920.2,3919.3,2.55147]
[1734001897566,0.55,3920.2,3919.1,2.55159]
[1734001898464,2.55082,3920.3,3918.7,0.4736963]
[1734001898465,0.55,3920.4,3919.3,2.55146]
[1734001898645,0.55,3920.2,3919.3,2.55146]
[1734001899554,0.55,3920.2,3918.7,0.4736963]
[1734001899852,0.13337,3920.3,3919.5,2.55129]
[1734001900056,0.55,3920.4,3919.5,2.55129]
[1734001900966,0.55,3920.4,3918.7,3.4736963]
[1734001901141,0.55,3920.4,3918.9,3.0]
[1734001901344,0.55,3920.4,3919.4,2.55135]
[1734001901563,0.55,3920.4,3919.4,2.55137]
[1734001901745,0.55,3920.4,3919.0,2.55166]
[1734001901746,0.13337,3920.3,3919.0,2.55166]
[1734001902136,0.13337,3920.3,3919.3,2.55146]
[1734001902447,0.13337,3920.3,3918.8,2.55175]
[1734001902634,0.13337,3920.3,3919.3,2.55147]
[1734001903035,0.13337,3920.3,3918.9,2.55173]
[1734001903267,0.55,3920.4,3919.5,2.5513]
[1734001903468,0.55,3920.4,3919.6,2.55122]
[1734001903846,0.7837,3920.5,3919.7,2.55115]
[1734001904051,0.7837,3920.5,3919.5,2.55134]
[1734001904374,0.55,3920.4,3919.2,3.0]
[1734001904693,0.7837,3920.5,3919.2,3.0]
[1734001904694,3.10093,3920.2,3919.2,3.0]
[1734001905213,3.10093,3920.2,3919.1,2.55158]
[1734001905214,2.55123,3919.7,3918.5,3.32208]
[1734001905337,0.55,3920.0,3917.9,2.55237]
[1734001905338,0.7803,3919.0,3917.9,2.55237]
[1734001905538,0.7803,3919.0,3917.7,0.33139]
[1734001906034,0.7803,3919.0,3917.2,2.5528]
[1734001906035,2.55186,3918.7,3917.6,2.55253]
[1734001906274,0.55,3918.5,3917.1,3.59752254]
[1734001906434,0.8147,3918.4,3917.1,3.59752254]
[1734001906639,0.8147,3918.4,3917.6,2.55255]
[1734001906844,0.8147,3918.4,3917.3,2.55273]
[1734001907148,3.36676,3918.4,3917.3,2.55273]
[1734001907768,0.8147,3918.4,3917.1,3.59752254]
[1734001907988,0.55,3918.3,3917.2,2.55281]
[1734001908133,3.493817,3918.3,3917.2,2.55281]
[1734001908334,3.493817,3918.3,3917.1,3.59752254]
[1734001908573,2.55219,3918.2,3917.1,3.59752254]
[1734001908937,0.941677,3918.3,3917.1,3.59752254]
[1734001909161,0.8093,3918.0,3917.0,2.55295]
[1734001909366,0.8093,3918.0,3916.7,0.33162]
[1734001909576,0.8093,3918.0,3916.9,2.55303]
[1734001909744,0.55,3917.9,3916.9,2.55303]
[1734001910273,0.55,3917.9,3917.0,3.0]
[1734001910770,0.55,3917.9,3916.6,3.59752254]
[1734001910976,0.8107,3917.7,3916.4,2.55334]
[1734001911149,0.8107,3917.7,3916.2,0.1652248]
[1734001911150,0.68607,3917.6,3916.2,0.1652248]
[1734001911338,0.55,3917.4,3916.2,0.1652248]
[1734001911886,0.55,3917.3,3916.3,2.55341]
[1734001912085,0.55,3917.5,3916.2,0.1652248]
[1734001912252,0.55,3917.5,3916.4,2.55335]
[1734001912761,0.55,3917.5,3916.2,0.1652248]
[1734001912947,0.699677,3917.5,3916.4,3.0]
[1734001913367,0.7971,3918.3,3916.2,3.1652248]
[1734001913566,0.7971,3918.3,3916.7,3.0]
[1734001913773,3.34924,3918.3,3917.1,2.55287]
[1734001913978,0.7971,3918.3,3917.4,2.55269]
[1734001914281,0.7971,3918.3,3917.5,2.55264]
[1734001914848,1.132004,3918.3,3917.5,2.55264]
[1734001915297,0.55,3918.2,3917.5,2.55264]
[1734001916167,0.55,3918.2,3917.0,2.55297]
[1734001916348,0.55,3918.2,3917.3,2.55277]
[1734001916552,0.55,3918.2,3917.4,2.55268]
[1734001917787,3.5256304,3918.2,3916.7,3.0]
[1734001917984,3.10234,3918.0,3917.0,3.0]
[1734001918186,3.10234,3918.0,3916.6,2.55318]
[1734001918490,0.7806,3917.5,3916.4,2.55336]
[1734001918692,3.33325,3917.5,3916.4,2.55336]
[1734001918921,3.721575,3917.5,3916.4,2.55336]
[1734001919413,0.55,3917.4,3916.2,0.1652248]
[1734001919557,0.55,3917.4,3916.2,2.7187048]
[1734001919901,0.55,3917.4,3916.2,2.7187148]
[1734001920059,0.55,3917.2,3916.2,2.7187148]
[1734001920260,2.55308,3916.9,3916.2,0.1652248]
[1734001920455,0.7806,3917.0,3916.2,0.1652248]
[1734001920664,0.55,3916.6,3916.2,0.1652248]
[1734001921007,3.10323,3916.6,3916.2,0.1652248]
[1734001921358,0.7687,3916.5,3916.2,0.1652248]
[1734001921612,0.387193,3916.4,3916.2,0.1652248]
[1734001921759,3.10336,3916.4,3916.2,0.1652248]